fUST/lending_fUST_20250220
["ID","MTS","AMOUNT","RATE_DAILY","PERIOD"]
[353697088,1739992233330,-500.0,0.0001378,2]
[353697090,1739992233341,-500.0,0.0001378,2]
[353697092,1739992233351,-500.0,0.0001378,2]
[353697094,1739992233361,-500.0,0.0001378,2]
[353697096,1739992233372,-500.0,0.0001378,2]
[353697098,1739992233383,-500.0,0.0001378,2]
[353697099,1739992233392,-500.0,0.0001378,2]
[353697101,1739992233405,-500.0,0.0001378,2]
[353697103,1739992233416,-500.0,0.0001378,2]
[353697105,1739992233426,-500.0,0.0001378,2]
[353697107,1739992233437,-500.0,0.0001378,2]
[353697109,1739992233448,-508.82,0.0001378,2]
[353697111,1739992233459,-500.0,0.0001378,2]
[353697113,1739992233469,-525.53,0.0001378,2]
[353697115,1739992233479,-500.0,0.0001378,2]
[353697117,1739992233489,-3470.22,0.0001378,2]
[353697118,1739992233500,-251.62,0.0001378,2]
[353697120,1739992233510,-500.0,0.0001378,2]
[353697122,1739992233520,-587.76,0.0001378,2]
[353697124,1739992233530,-500.0,0.0001378,2]
[353697126,1739992233540,-500.0,0.0001378,2]
[353697128,1739992233550,-500.0,0.0001378,2]
[353697130,1739992233559,-500.0,0.0001378,2]
[353697132,1739992233570,-500.0,0.0001378,2]
[353697134,1739992233580,-500.0,0.0001378,2]
[353697136,1739992233590,-500.0,0.0001378,2]
[353697137,1739992233600,-711.12,0.0001378,2]
[353697139,1739992233610,-500.0,0.0001378,2]
[353697141,1739992233620,-500.0,0.0001378,2]
[353697143,1739992233634,-500.0,0.0001378,2]
[353697146,1739992233647,-500.0,0.0001378,2]
[353697147,1739992233657,-1082.54,0.0001378,2]
[353697149,1739992233669,-500.0,0.0001378,2]
[353697151,1739992233679,-481.23,0.0001378,2]
[353697166,1739992233834,-207.81,0.0001378,2]
[353697168,1739992233845,-500.0,0.0001378,2]
[353697170,1739992233855,-500.0,0.00013863,2]
[353697172,1739992233865,-500.0,0.00013863,2]
[353697174,1739992233874,-179.66,0.00013863,2]
[353697176,1739992233886,-500.0,0.00013863,2]
[353697178,1739992233897,-533.37,0.00013863,2]
[353697180,1739992233906,-500.0,0.00013863,2]
[353697181,1739992233918,-500.0,0.00013863,2]
[353697183,1739992233927,-525.53,0.00013863,2]
[353697185,1739992233937,-500.0,0.00013863,2]
[353697187,1739992233947,-3470.22,0.00013863,2]
[353697189,1739992233956,-500.0,0.00013863,2]
[353697191,1739992233966,-189.52,0.00013863,2]
[353697193,1739992233976,-562.75,0.00013863,2]
[353697195,1739992233986,-500.0,0.00013863,2]
[353697197,1739992233995,-500.0,0.00013863,2]
[353697199,1739992234005,-500.0,0.00013863,2]
[353697201,1739992234015,-268.26,0.00013863,2]
[353697202,1739992234024,-500.0,0.00013863,2]
[353697204,1739992234033,-711.12,0.00013863,2]
[353697206,1739992234043,-175.6,0.00013863,2]
[353697208,1739992234053,-500.0,0.00013863,2]
[353697210,1739992234062,-500.0,0.00013863,2]
[353697212,1739992234071,-500.0,0.00013863,2]
[353697213,1739992234082,-1082.54,0.00013863,2]
[353697215,1739992234092,-500.0,0.00013863,2]
[353697217,1739992234102,-500.0,0.00013863,2]
[353697219,1739992234115,-447.69,0.00013945,2]
[353697221,1739992234124,-500.0,0.00013945,2]
[353697223,1739992234145,-500.0,0.00013945,2]
[353697225,1739992234167,-500.0,0.00013945,2]
[353697227,1739992234178,-500.0,0.00013945,2]
[353697229,1739992234198,-525.53,0.00013945,2]
[353697231,1739992234210,-500.0,0.00013945,2]
[353697233,1739992234219,-3470.22,0.00013945,2]
[353697235,1739992234229,-252.65,0.00013945,2]
[353697237,1739992234251,-500.0,0.00013945,2]
[353697239,1739992234262,-500.0,0.00013945,2]
[353697240,1739992234272,-500.0,0.00013945,2]
[353697243,1739992234283,-500.0,0.00013945,2]
[353697244,1739992234293,-711.12,0.00013945,2]
[353697246,1739992234307,-500.0,0.00013945,2]
[353697248,1739992234316,-500.0,0.00013945,2]
[353697250,1739992234326,-500.0,0.00013945,2]
[353697252,1739992234335,-1082.54,0.00013945,2]
[353697254,1739992234345,-500.0,0.00013945,2]
[353697255,1739992234355,-500.0,0.00013945,2]
[353697257,1739992234366,-1000.0,0.00014,2]
[353697259,1739992234376,-500.0,0.00014027,2]
[353697261,1739992234386,-500.0,0.00014027,2]
[353697263,1739992234397,-500.0,0.00014027,2]
[353697265,1739992234407,-500.0,0.00014027,2]
[353697267,1739992234417,-525.53,0.00014027,2]
[353697269,1739992234427,-500.0,0.00014027,2]
[353697271,1739992234436,-3470.22,0.00014027,2]
[353697273,1739992234460,-500.0,0.00014027,2]
[353697275,1739992234490,-500.0,0.00014027,2]
[353697277,1739992234506,-500.0,0.00014027,2]
[353697279,1739992234515,-500.0,0.00014027,2]
[353697281,1739992234525,-711.12,0.00014027,2]
[353697283,1739992234534,-245.42,0.00014027,2]
[353697285,1739992234544,-500.0,0.00014027,2]
[353697287,1739992234554,-500.0,0.00014027,2]
[353697289,1739992234563,-1082.54,0.00014027,2]
[353697291,1739992234572,-500.0,0.00014027,2]
[353697293,1739992234581,-500.0,0.00014027,2]
[353697295,1739992234591,-500.0,0.00014109,2]
[353697296,1739992234600,-500.0,0.00014109,2]
[353697298,1739992234610,-500.0,0.00014109,2]
[353697300,1739992234619,-500.0,0.00014109,2]
[353697302,1739992234629,-525.53,0.00014109,2]
[353697304,1739992234638,-640.27827629,0.00014109,2]
[353697306,1739992234649,-3470.22,0.00014109,2]
[353697307,1739992234666,-500.0,0.00014109,2]
[353697309,1739992234676,-500.0,0.00014109,2]
[353697311,1739992234686,-500.0,0.00014109,2]
[353697314,1739992234697,-711.12,0.00014109,2]
[353697316,1739992234707,-375.88,0.00014109,2]
[353697317,1739992234716,-500.0,0.00014109,2]
[353697319,1739992234726,-1082.54,0.00014109,2]
[353697321,1739992234735,-500.0,0.00014109,2]
[353697323,1739992234745,-500.0,0.00014109,2]
[353697325,1739992234755,-420.0,0.00014144,2]
[353697327,1739992234765,-500.0,0.00014164,2]
[353697329,1739992234774,-204.34,0.00014191,2]
[353697331,1739992234783,-500.0,0.00014191,2]
[353697333,1739992234793,-500.0,0.00014191,2]
[353697335,1739992234802,-500.0,0.00014191,2]
[353697336,1739992234812,-525.53,0.00014191,2]
[353697338,1739992234821,-3470.22,0.00014191,2]
[353697340,1739992234832,-500.0,0.00014191,2]
[353697342,1739992234843,-500.0,0.00014191,2]
[353697344,1739992234852,-500.0,0.00014191,2]
[353697346,1739992234862,-711.12,0.00014191,2]
[353697348,1739992234871,-536.6,0.00014191,2]
[353697350,1739992234880,-1082.54,0.00014191,2]
[353697352,1739992234890,-500.0,0.00014191,2]
[353697354,1739992234901,-500.0,0.00014191,2]
[353697356,1739992234913,-500.0,0.00014273,2]
[353697358,1739992234922,-500.0,0.00014273,2]
[353697360,1739992234932,-500.0,0.00014273,2]
[353697361,1739992234941,-525.53,0.00014273,2]
[353697363,1739992234950,-3470.22,0.00014273,2]
[353697365,1739992234961,-344.86,0.00014273,2]
[353697367,1739992234971,-500.0,0.00014273,2]
[353697369,1739992234981,-500.0,0.00014273,2]
[353697371,1739992234991,-711.12,0.00014273,2]
[353697373,1739992235000,-1082.54,0.00014273,2]
[353697375,1739992235009,-500.0,0.00014273,2]
[353697377,1739992235019,-500.0,0.00014273,2]
[353697379,1739992235028,-500.0,0.00014356,2]
[353697381,1739992235038,-500.0,0.00014356,2]
[353697383,1739992235047,-500.0,0.00014356,2]
[353697385,1739992235056,-393.50599076,0.00014356,2]
[353697707,1739992240497,-378.73964115,0.00013698,2]
[353697708,1739992240549,-121.26035885,0.00013698,2]
[353697709,1739992240560,-500.0,0.00013698,2]
[353697710,1739992240569,-500.0,0.00013698,2]
[353697711,1739992240579,-500.0,0.00013698,2]
[353697712,1739992240589,-161.75,0.0001378,2]
[353697713,1739992240599,-441.89,0.0001378,2]
[353697714,1739992240609,-568.63864276,0.00013944,2]
[353697715,1739992240619,-191.94529387,0.00013944,2]
[353697716,1739992240628,-132.02400924,0.00014356,2]
[353697717,1739992240637,-3470.22,0.00014356,2]
[353697718,1739992240647,-500.0,0.00014356,2]
[353697719,1739992240659,-500.0,0.00014356,2]
[353697720,1739992240670,-711.12,0.00014356,2]
[353697721,1739992240680,-1082.54,0.00014356,2]
[353697722,1739992240689,-500.0,0.00014356,2]
[353697723,1739992240699,-543.7,0.00014356,2]
[353697724,1739992240708,-179.67658215,0.000144,2]
[353697725,1739992240718,-7438.69753278,0.00014406,2]
[353697726,1739992240727,-500.0,0.00014438,2]
[353697727,1739992240737,-500.0,0.00014438,2]
[353697728,1739992240747,-525.53,0.00014438,2]
[353697729,1739992240755,-3470.22,0.00014438,2]
[353697730,1739992240765,-500.0,0.00014438,2]
[353697731,1739992240775,-500.0,0.00014438,2]
[353697732,1739992240785,-711.12,0.00014438,2]
[353697733,1739992240795,-1082.54,0.00014438,2]
[353697734,1739992240804,-500.0,0.00014438,2]
[353697735,1739992240814,-500.0,0.0001452,2]
[353697736,1739992240824,-500.0,0.0001452,2]
[353697737,1739992240834,-525.53,0.0001452,2]
[353697738,1739992240847,-3470.22,0.0001452,2]
[353697739,1739992240857,-498.42,0.0001452,2]
[353697740,1739992240867,-500.0,0.0001452,2]
[353697741,1739992240876,-711.12,0.0001452,2]
[353697742,1739992240886,-1082.54,0.0001452,2]
[353697743,1739992240895,-500.0,0.0001452,2]
[353697744,1739992240905,-500.0,0.00014602,2]
[353697745,1739992240917,-500.0,0.00014602,2]
[353697746,1739992240926,-525.53,0.00014602,2]
[353697747,1739992240935,-3470.22,0.00014602,2]
[353697748,1739992240945,-500.0,0.00014602,2]
[353697749,1739992240955,-711.12,0.00014602,2]
[353697750,1739992240964,-1082.54,0.00014602,2]
[353697751,1739992240974,-610.2,0.00014602,2]
[353697752,1739992240983,-500.0,0.00014684,2]
[353697753,1739992240992,-500.0,0.00014684,2]
[353697754,1739992241001,-525.53,0.00014684,2]
[353697755,1739992241011,-3470.22,0.00014684,2]
[353697756,1739992241020,-500.0,0.00014684,2]
[353697757,1739992241030,-711.12,0.00014684,2]
[353697758,1739992241039,-1082.54,0.00014684,2]
[353697759,1739992241048,-803.186,0.0001475,2]
[353697760,1739992241058,-169.48170849,0.0001475,2]
[353697761,1739992241068,-500.0,0.00014767,2]
[353697762,1739992241077,-500.0,0.00014767,2]
[353697763,1739992241086,-525.53,0.00014767,2]
[353697764,1739992241095,-3470.22,0.00014767,2]
[353697765,1739992241105,-500.0,0.00014767,2]
[353697766,1739992241114,-711.12,0.00014767,2]
[353697767,1739992241124,-1082.54,0.00014767,2]
[353697768,1739992241133,-214.24172056,0.00014831,2]
[353697769,1739992241143,-500.0,0.00014849,2]
[353697770,1739992241153,-500.0,0.00014849,2]
[353697772,1739992241162,-525.53,0.00014849,2]
[353697773,1739992241172,-3470.22,0.00014849,2]
[353697775,1739992241181,-382.21,0.00014849,2]
[353697777,1739992241191,-711.12,0.00014849,2]
[353697779,1739992241200,-1082.54,0.00014849,2]
[353697781,1739992241210,-500.0,0.00014873,2]
[353697783,1739992241219,-500.0,0.00014873,2]
[353697784,1739992241228,-500.0,0.00014899,2]
[353697785,1739992241238,-21366.96091448,0.000149,2]
[353697821,1739992243113,-597.07216,0.00013695,2]
[353697823,1739992243122,-526.43,0.00013698,2]
[353697825,1739992243132,-226647.47341868,0.000149,2]
[353697984,1739992297867,197.586369,9.041e-05,2]
[353698019,1739993314340,1050.37210985,0.00018164,90]
[353698092,1739993432463,-300.0,0.00012466,2]
[353698094,1739993432473,-24900.0,0.00012467,2]
[353698096,1739993432484,-255.8727335,0.000129,2]
[353698099,1739993432493,-59511.36852858,0.00013,3]
[353698101,1739993432503,-151.0,0.00013,2]
[353698103,1739993432512,-700.0,0.00013068,2]
[353698105,1739993432523,-151.0,0.000135,2]
[353698107,1739993432532,-569.92789718,0.00013599,2]
[353698109,1739993432542,-152.0,0.00013654,2]
[353698111,1739993432551,-500.0,0.00013673,2]
[353698113,1739993432561,-500.0,0.00013673,2]
[353698115,1739993432571,-500.0,0.00013673,2]
[353698118,1739993432580,-500.0,0.00013673,2]
[353698121,1739993432590,-500.0,0.00013673,2]
[353698124,1739993432600,-500.0,0.00013673,2]
[353698127,1739993432610,-500.80430822,0.00013673,2]
[353698130,1739993432619,-500.57312837,0.00013673,2]
[353698133,1739993432629,-420.0,0.00013679,2]
[353698135,1739993432640,-398.04704993,0.00013697,2]
[353698138,1739993432649,-448.63062766,0.00013697,2]
[353698141,1739993432659,-113332.30530263,0.00013698,5]
[353698143,1739993432669,-30984.53870998,0.00013698,5]
[353698146,1739993432679,-500.0,0.00013698,2]
[353698148,1739993432688,-500.0,0.00013698,2]
[353698150,1739993432698,-500.0,0.00013698,2]
[353698154,1739993432707,-567.22,0.00013698,2]
[353698157,1739993432717,-500.0,0.00013698,2]
[353698160,1739993432726,-500.0,0.00013698,2]
[353698161,1739993432736,-500.0,0.00013698,2]
[353698163,1739993432745,-500.0,0.00013698,2]
[353698166,1739993432755,-500.0,0.00013698,2]
[353698167,1739993432765,-500.0,0.00013698,2]
[353698169,1739993432775,-500.0,0.00013698,2]
[353698172,1739993432785,-500.0,0.00013698,2]
[353698174,1739993432795,-500.0,0.00013698,2]
[353698176,1739993432804,-500.0,0.00013698,2]
[353698178,1739993432814,-500.0,0.00013698,2]
[353698180,1739993432824,-500.0,0.00013698,2]
[353698182,1739993432833,-518.69501643,0.00013698,2]
[353698184,1739993432843,-500.0,0.00013698,2]
[353698186,1739993432852,-500.0,0.00013698,2]
[353698188,1739993432861,-500.0,0.00013698,2]
[353698190,1739993432871,-500.0,0.00013698,2]
[353698192,1739993432880,-500.0,0.00013698,2]
[353698193,1739993432890,-500.0,0.00013698,2]
[353698195,1739993432899,-500.0,0.00013698,2]
[353698197,1739993432908,-501.49636431,0.00013698,2]
[353698199,1739993432918,-500.0,0.00013698,2]
[353698214,1739993433043,-500.0,0.00013698,2]
[353698217,1739993433058,-500.0,0.00013698,2]
[353698219,1739993433068,-500.0,0.00013698,2]
[353698221,1739993433078,-500.0,0.00013698,2]
[353698223,1739993433088,-500.0,0.00013698,2]
[353698225,1739993433098,-500.0,0.00013698,2]
[353698227,1739993433108,-500.0,0.00013698,2]
[353698229,1739993433118,-500.0,0.00013698,2]
[353698231,1739993433128,-500.0,0.00013698,2]
[353698233,1739993433139,-500.0,0.00013698,2]
[353698235,1739993433150,-500.0,0.00013698,2]
[353698237,1739993433160,-500.0,0.00013698,2]
[353698239,1739993433170,-500.0,0.00013698,2]
[353698241,1739993433180,-500.0,0.00013698,2]
[353698243,1739993433189,-500.0,0.00013698,2]
[353698245,1739993433199,-500.69529481,0.00013698,2]
[353698247,1739993433209,-500.0,0.00013698,2]
[353698249,1739993433219,-500.0,0.00013698,2]
[353698251,1739993433230,-500.0,0.00013698,2]
[353698253,1739993433242,-500.0,0.00013698,2]
[353698254,1739993433251,-501.39231782,0.00013698,2]
[353698255,1739993433262,-500.0,0.00013698,2]
[353698256,1739993433272,-500.0,0.00013698,2]
[353698257,1739993433282,-500.0,0.00013698,2]
[353698259,1739993433292,-500.0,0.00013698,2]
[353698260,1739993433301,-500.0,0.00013698,2]
[353698262,1739993433313,-500.0,0.00013698,2]
[353698264,1739993433325,-293.58903711,0.00013698,2]
[353698265,1739993433335,-500.0,0.00013698,2]
[353698266,1739993433345,-500.0,0.00013698,2]
[353698267,1739993433355,-500.0,0.00013698,2]
[353698268,1739993433366,-500.0,0.00013698,2]
[353698269,1739993433376,-500.0,0.00013698,2]
[353698270,1739993433388,-500.0,0.00013698,2]
[353698271,1739993433398,-500.0,0.00013698,2]
[353698272,1739993433409,-500.0,0.00013698,2]
[353698273,1739993433420,-500.0,0.00013698,2]
[353698274,1739993433431,-500.0,0.00013698,2]
[353698275,1739993433442,-559.93041302,0.00013698,2]
[353698276,1739993433453,-500.0,0.00013698,2]
[353698277,1739993433463,-500.0,0.00013698,2]
[353698278,1739993433474,-403.15620718,0.00013698,2]
[353698279,1739993433484,-500.0,0.00013698,2]
[353698280,1739993433494,-500.0,0.00013698,2]
[353698281,1739993433504,-500.0,0.00013698,2]
[353698282,1739993433515,-500.0,0.00013698,2]
[353698283,1739993433525,-500.0,0.00013698,2]
[353698284,1739993433535,-500.0,0.00013698,2]
[353698285,1739993433545,-500.0,0.00013698,2]
[353698286,1739993433555,-500.0,0.00013698,2]
[353698287,1739993433565,-500.0,0.00013698,2]
[353698289,1739993433575,-500.0,0.00013698,2]
[353698290,1739993433584,-501.01171232,0.00013698,2]
[353698292,1739993433594,-264.90135804,0.00013698,2]
[353698294,1739993433604,-500.0,0.00013698,2]
[353698296,1739993433614,-500.0,0.00013698,2]
[353698298,1739993433624,-500.0,0.00013698,2]
[353698299,1739993433634,-500.0,0.00013698,2]
[353698301,1739993433644,-500.0,0.00013698,2]
[353698302,1739993433654,-500.0,0.00013698,2]
[353698303,1739993433664,-500.0,0.00013698,2]
[353698305,1739993433674,-512.38538375,0.00013698,2]
[353698306,1739993433684,-500.0,0.00013698,2]
[353698308,1739993433694,-500.0,0.00013698,2]
[353698309,1739993433704,-500.0,0.00013698,2]
[353698311,1739993433714,-500.0,0.00013698,2]
[353698313,1739993433724,-503.94733162,0.00013698,2]
[353698314,1739993433735,-500.0,0.00013698,2]
[353698316,1739993433745,-500.0,0.00013698,2]
[353698318,1739993433756,-500.0,0.00013698,2]
[353698320,1739993433766,-502.65970268,0.00013698,2]
[353698322,1739993433776,-500.0,0.00013698,2]
[353698323,1739993433787,-287.83856464,0.00013698,2]
[353698324,1739993433797,-500.0,0.00013698,2]
[353698325,1739993433807,-500.0,0.00013698,2]
[353698326,1739993433817,-500.0,0.00013698,2]
[353698327,1739993433827,-500.0,0.00013698,2]
[353698328,1739993433837,-500.0,0.00013698,2]
[353698329,1739993433847,-500.0,0.00013698,2]
[353698330,1739993433866,-500.0,0.00013698,5]
[353698331,1739993433879,-500.0,0.00013698,2]
[353698332,1739993433893,-500.0,0.00013698,2]
[353698333,1739993433904,-500.0,0.00013698,2]
[353698334,1739993433915,-500.0,0.00013698,2]
[353698335,1739993433926,-500.0,0.00013698,2]
[353698336,1739993433938,-500.0,0.00013698,2]
[353698337,1739993433948,-500.0,0.00013698,2]
[353698338,1739993433959,-500.0,0.00013698,2]
[353698339,1739993433969,-500.0,0.00013698,2]
[353698340,1739993433981,-500.0,0.00013698,2]
[353698341,1739993433991,-500.0,0.00013698,2]
[353698342,1739993434002,-500.0,0.00013698,2]
[353698343,1739993434012,-500.0,0.00013698,2]
[353698344,1739993434023,-500.0,0.00013698,2]
[353698345,1739993434032,-500.0,0.00013698,2]
[353698346,1739993434042,-515.62228993,0.00013698,2]
[353698347,1739993434052,-500.0,0.00013698,2]
[353698348,1739993434062,-500.0,0.00013698,2]
[353698349,1739993434072,-500.0,0.00013698,2]
[353698350,1739993434082,-500.0,0.00013698,2]
[353698351,1739993434093,-500.0,0.00013698,2]
[353698352,1739993434103,-500.0,0.00013698,2]
[353698353,1739993434114,-500.0,0.00013698,2]
[353698354,1739993434124,-500.0,0.00013698,2]
[353698355,1739993434134,-500.0,0.00013698,2]
[353698356,1739993434143,-500.0,0.00013698,2]
[353698357,1739993434153,-500.0,0.00013698,2]
[353698358,1739993434163,-500.0,0.00013698,2]
[353698359,1739993434173,-500.0,0.00013698,2]
[353698360,1739993434183,-500.0,0.00013698,2]
[353698361,1739993434193,-500.0,0.00013698,2]
[353698362,1739993434203,-500.0,0.00013698,2]
[353698363,1739993434214,-500.0,0.00013698,2]
[353698364,1739993434224,-500.0,0.00013698,2]
[353698365,1739993434238,-500.0,0.00013698,2]
[353698366,1739993434248,-500.0,0.00013698,2]
[353698367,1739993434257,-500.0,0.00013698,2]
[353698368,1739993434268,-596.4,0.00013698,2]
[353698369,1739993434278,-500.0,0.00013698,2]
[353698370,1739993434288,-500.0,0.00013698,2]
[353698371,1739993434298,-500.55781911,0.00013698,2]
[353698372,1739993434308,-500.0,0.00013698,2]
[353698373,1739993434319,-500.64937786,0.00013698,2]
[353698374,1739993434330,-500.0,0.00013698,2]
[353698375,1739993434340,-500.0,0.00013698,2]
[353698376,1739993434350,-500.68596423,0.00013698,2]
[353698377,1739993434361,-500.0,0.00013698,2]
[353698378,1739993434371,-500.0,0.00013698,2]
[353698379,1739993434381,-512.6,0.00013698,2]
[353698380,1739993434393,-500.0,0.00013698,2]
[353698381,1739993434402,-500.0,0.00013698,2]
[353698382,1739993434414,-500.0,0.00013698,2]
[353698383,1739993434425,-500.0,0.00013698,2]
[353698384,1739993434435,-500.0,0.00013698,2]
[353698385,1739993434446,-500.0,0.00013698,2]
[353698386,1739993434457,-329.54949911,0.00013698,2]
[353698387,1739993434468,-500.0,0.00013698,2]
[353698388,1739993434478,-500.0,0.00013698,2]
[353698389,1739993434489,-500.0,0.00013698,2]
[353698390,1739993434499,-500.0,0.00013698,2]
[353698391,1739993434510,-500.0,0.00013698,2]
[353698392,1739993434521,-500.0,0.00013698,2]
[353698393,1739993434531,-500.0,0.00013698,2]
[353698394,1739993434540,-500.0,0.00013698,2]
[353698395,1739993434550,-500.0,0.00013698,2]
[353698396,1739993434560,-500.0,0.00013698,2]
[353698397,1739993434570,-500.0,0.00013698,2]
[353698398,1739993434580,-500.0,0.00013698,2]
[353698399,1739993434591,-500.0,0.00013698,2]
[353698400,1739993434601,-500.0,0.00013698,2]
[353698401,1739993434611,-500.0,0.00013698,2]
[353698402,1739993434622,-500.0,0.00013698,2]
[353698403,1739993434632,-500.0,0.00013698,2]
[353698404,1739993434643,-500.0,0.00013698,2]
[353698405,1739993434653,-500.0,0.00013698,2]
[353698406,1739993434664,-500.0,0.00013698,2]
[353698407,1739993434674,-500.0,0.00013698,2]
[353698408,1739993434685,-500.0,0.00013698,2]
[353698409,1739993434695,-528.55,0.00013698,2]
[353698410,1739993434709,-500.0,0.00013698,2]
[353698411,1739993434720,-500.0,0.00013698,2]
[353698412,1739993434730,-500.0,0.00013698,2]
[353698413,1739993434740,-500.0,0.00013698,2]
[353698414,1739993434750,-500.0,0.00013698,2]
[353698415,1739993434761,-500.0,0.00013698,2]
[353698416,1739993434771,-500.0,0.00013698,2]
[353698417,1739993434781,-500.0,0.00013698,2]
[353698418,1739993434792,-500.0,0.00013698,2]
[353698419,1739993434802,-500.0,0.00013698,2]
[353698420,1739993434811,-500.0,0.00013698,2]
[353698421,1739993434822,-500.0,0.00013698,2]
[353698422,1739993434832,-500.0,0.00013698,2]
[353698423,1739993434842,-500.0,0.00013698,2]
[353698424,1739993434852,-500.0,0.00013698,2]
[353698425,1739993434861,-500.0,0.00013698,2]
[353698426,1739993434871,-421.3,0.00013698,2]
[353698427,1739993434881,-500.0,0.00013698,2]
[353698428,1739993434892,-497.42507754,0.00013698,2]
[353698429,1739993434902,-508.73,0.00013698,2]
[353698430,1739993434913,-500.0,0.00013698,2]
[353698431,1739993434923,-500.0,0.00013698,2]
[353698432,1739993434933,-500.0,0.00013698,2]
[353698433,1739993434943,-500.0,0.00013698,2]
[353698434,1739993434953,-382.76,0.00013698,2]
[353698435,1739993434963,-500.0,0.00013698,2]
[353698436,1739993434973,-500.0,0.00013698,2]
[353698437,1739993434982,-500.0,0.00013698,2]
[353698438,1739993434992,-500.0,0.00013698,2]
[353698439,1739993435002,-500.0,0.00013698,2]
[353698440,1739993435012,-500.0,0.00013698,2]
[353698441,1739993435021,-500.0,0.00013698,2]
[353698442,1739993435031,-500.0,0.00013698,2]
[353698443,1739993435040,-500.0,0.00013698,2]
[353698444,1739993435050,-500.0,0.00013698,2]
[353698445,1739993435060,-500.0,0.00013698,2]
[353698446,1739993435070,-500.0,0.00013698,2]
[353698447,1739993435079,-500.0,0.00013698,2]
[353698448,1739993435090,-500.0,0.00013698,2]
[353698449,1739993435099,-500.0,0.00013698,2]
[353698450,1739993435109,-500.0,0.00013698,2]
[353698451,1739993435119,-355.82526681,0.00013698,2]
[353698452,1739993435128,-500.0,0.00013698,2]
[353698453,1739993435139,-500.0,0.00013698,2]
[353698454,1739993435148,-500.0,0.00013698,2]
[353698455,1739993435158,-500.0,0.00013698,2]
[353698456,1739993435167,-500.0,0.00013698,2]
[353698457,1739993435177,-500.0,0.00013698,2]
[353698458,1739993435187,-500.0,0.00013698,2]
[353698459,1739993435196,-501.44551969,0.00013698,2]
[353698460,1739993435206,-500.0,0.00013698,2]
[353698461,1739993435216,-500.0,0.00013698,2]
[353698462,1739993435227,-500.0,0.00013698,2]
[353698463,1739993435241,-500.0,0.00013698,2]
[353698464,1739993435251,-500.0,0.00013698,2]
[353698465,1739993435260,-503.54702989,0.00013698,2]
[353698466,1739993435270,-500.0,0.00013698,2]
[353698467,1739993435281,-500.0,0.00013698,2]
[353698468,1739993435291,-500.0,0.00013698,2]
[353698469,1739993435300,-500.0,0.00013698,2]
[353698470,1739993435311,-500.0,0.00013698,2]
[353698471,1739993435321,-885.07,0.00013698,2]
[353698472,1739993435331,-500.0,0.00013698,2]
[353698473,1739993435340,-500.0,0.00013698,2]
[353698474,1739993435351,-500.0,0.00013698,2]
[353698475,1739993435361,-500.0,0.00013698,2]